fUSD/lending_fUSD_20251231
["ID","MTS","AMOUNT","RATE_DAILY","PERIOD"]
[400128119,1767139624302,-163.03828711,0.00013699,2]
[400128131,1767139831674,-211.58171289,0.00013699,2]
[400128132,1767139831687,-600.98292006,0.00016366,2]
[400128133,1767139831730,-566.53307994,0.00016366,2]
[400128134,1767139831740,-156.763,0.00016366,2]
[400128135,1767139831750,-151.0,0.00016447,2]
[400128136,1767139831764,-151.0,0.00016447,2]
[400128137,1767139831774,-151.0,0.00016456,2]
[400128138,1767139831783,-151.0,0.00016456,2]
[400128139,1767139831793,-500.0,0.00016599,2]
[400128140,1767139831803,-238.43678407,0.000166,2]
[400128141,1767139831812,-732.94392134,0.000166,2]
[400128142,1767139831822,-1629.66192364,0.000166,2]
[400128143,1767139831834,-23.4986723,0.000166,2]
[400128144,1767139831844,-1144.68487015,0.000166,2]
[400128145,1767139831856,-257.87596969,0.000166,2]
[400128146,1767139831868,-287.59,0.000166,2]
[400128147,1767139831880,-729.51283028,0.000166,2]
[400128148,1767139831894,-605.71259571,0.000166,2]
[400128149,1767139831906,-449.66614174,0.000166,2]
[400128151,1767139831918,-259.39015822,0.000166,2]
[400128152,1767139831929,-1155.10411018,0.000166,2]
[400128164,1767139837852,-1436.31215176,0.000166,2]
[400128165,1767139837899,-518.22739666,0.000166,2]
[400128166,1767139838036,-908.48151348,0.000166,2]
[400128167,1767139838085,-568.36869989,0.000166,2]
[400128333,1767139839833,-440.68739986,0.000166,2]
[400128354,1767139840010,-1300.94465244,0.000166,2]
[400128357,1767139840024,-380.9790429,0.000166,2]
[400128359,1767139840037,-3112.20531399,0.000166,2]
[400128361,1767139840050,-683419.63477506,0.000166,2]
[400128376,1767139840178,-10185.87604076,0.000166,2]
[400128764,1767139845182,-600.930018,0.000166,2]
[400128765,1767139845195,-271.46602208,0.000166,2]
[400128766,1767139845208,-276.29565446,0.000166,2]
[400128767,1767139845221,-745.41795146,0.000166,2]
[400128768,1767139845235,-353.1863629,0.000166,2]
[400128769,1767139845247,-298.0,0.000166,2]
[400128771,1767139845790,-241829.69868304,0.000166,2]
[400128786,1767140179392,500.0,0.00029718,120]
[400128797,1767140455364,500.0,0.00029718,120]
[400128805,1767140575215,580.24678196,0.00013501,2]
[400128806,1767140575255,1316.0389403,0.00013501,2]
[400128813,1767140734844,-241.88936682,0.00016,2]
[400128814,1767140736354,-224.89916642,0.00016,2]
[400128815,1767140764319,-178.1894853,0.0001399,2]
[400128816,1767140766332,-574.7156495,0.0001399,2]
[400128817,1767140770832,-176.88943954,0.0001399,2]
[400128818,1767140772415,-512.37073526,0.0001399,2]
[400128819,1767140774851,-196.34804293,0.0001399,2]
[400128820,1767140777498,-153.65871412,0.0001399,2]
[400128821,1767140779083,-1078.52712434,0.0001399,2]
[400128822,1767140781288,-184.94993181,0.0001399,2]
[400128823,1767140783531,-203.86,0.0001399,2]
[400128824,1767140787363,-335.22943184,0.0001399,2]
[400128826,1767140791599,-249.982578,0.0001399,2]
[400128827,1767140793088,-153.74930566,0.0001399,2]
[400128828,1767140796183,-168.26156098,0.0001399,2]
[400128829,1767140800659,-238.3378692,0.0001399,2]
[400128830,1767140802756,-283.5705,0.0001399,2]
[400128831,1767140806884,-177.91265073,0.0001399,2]
[400128832,1767140808974,-253.15861808,0.0001399,2]
[400128833,1767140811129,-198.16501142,0.0001399,2]
[400128835,1767140855600,-118.05998881,0.0001399,2]
[400128836,1767140855625,-213.59767627,0.00015389,2]
[400128837,1767140855651,-224.899166,0.00015919,2]
[400128838,1767140855674,-1264.78506892,0.00016,2]
[400128848,1767141031872,-287.0,0.00015999,2]
[400128849,1767141031882,-547.9769566,0.00016,2]
[400128850,1767141031894,-6690.0,0.00016,2]
[400128851,1767141031993,-747.0230434,0.00016,2]
[400128852,1767141032030,-853.92747061,0.00016,2]
[400128853,1767141032041,-776.15703811,0.00016,2]
[400128854,1767141032060,-4799.89907314,0.00016,2]
[400128855,1767141032070,-16402.30630928,0.00016,2]
[400128856,1767141032093,-299.99,0.00016,2]
[400128872,1767141038046,-470.0,0.00016,2]
[400128873,1767141038059,-963.02821688,0.00016,2]
[400128874,1767141038071,-32005.15684347,0.00016,2]
[400128875,1767141038082,-284.0,0.00016,2]
[400128876,1767141038092,-2903.01927622,0.000162,5]
[400128877,1767141038102,-907.22287648,0.000164,2]
[400128878,1767141038113,-151.0,0.00016441,2]
[400128879,1767141038123,-151.0,0.00016441,2]
[400128880,1767141038133,-151.0,0.00016455,2]
[400128881,1767141038144,-151.0,0.00016455,2]
[400128882,1767141038154,-221.21411787,0.0001649,2]
[400128883,1767141038167,-79.78058213,0.0001649,2]
[400128884,1767141038177,-151.0,0.00016497,2]
[400128885,1767141038187,-151.0,0.00016497,2]
[400128886,1767141038198,-151.0,0.00016497,2]
[400128887,1767141038208,-948.6084925,0.000165,2]
[400128888,1767141038220,-762.64682151,0.000165,2]
[400128889,1767141038232,-104241.24130146,0.000165,2]
[400128890,1767141038244,-480.96,0.000165,2]
[400129058,1767141040100,-232.59266254,0.000164,2]
[400129060,1767141040110,-64.30733746,0.000165,2]
[400129065,1767141040143,-12653.51644649,0.000165,2]
[400129067,1767141040155,-8904.92513306,0.000165,2]
[400129069,1767141040167,-25608.17919756,0.000165,2]
[400129071,1767141040178,-1434.6,0.000165,2]
[400129074,1767141040190,-2602.99277642,0.000165,2]
[400129076,1767141040206,-2054.98497725,0.000165,2]
[400129108,1767141040468,-9823.66393747,0.000165,2]
[400129130,1767141040674,-0.01849505,0.000165,2]
[400129132,1767141040685,-16957.25349034,0.000165,2]
[400129465,1767141044132,-3.375e-05,0.000165,2]
[400129616,1767141045584,-470.70224448,0.000165,2]
[400129618,1767141045600,-875.3,0.000165,2]
[400130073,1767141846939,203.87,8.329e-05,2]
[400130088,1767142232024,-150.0,0.00015288,2]
[400130089,1767142232034,-150.0,0.00015288,2]
[400130090,1767142232044,-150.0,0.00015288,2]
[400130091,1767142232054,-150.0,0.00015288,2]
[400130092,1767142232064,-150.0,0.00015288,2]
[400130093,1767142232074,-150.0,0.00015288,2]
[400130094,1767142232084,-150.0,0.00015288,2]
[400130095,1767142232094,-242.77578513,0.00015288,2]
[400130096,1767142232104,-517.89,0.00015807,2]
[400130097,1767142232114,-1000.0,0.00016,2]
[400130098,1767142232124,-1000.0,0.00016,2]
[400130099,1767142232134,-38.68362927,0.00016,2]
[400130100,1767142232148,-737.51637073,0.00016,2]
[400130101,1767142232160,-161.7924,0.000162,2]
[400130102,1767142232169,-16.58250389,0.00016225,2]
[400130103,1767142232181,-133.41749611,0.00016225,2]
[400130104,1767142232191,-150.0,0.00016225,2]
[400130105,1767142232201,-69.18129718,0.00016225,2]
[400130106,1767142232213,-80.81870282,0.00016225,2]
[400130107,1767142232223,-150.0,0.00016225,2]
[400130108,1767142232233,-150.0,0.00016225,2]
[400130109,1767142232243,-2.95746583,0.00016225,2]
[400130110,1767142232255,-147.04253417,0.00016225,2]
[400130111,1767142232265,-150.0,0.00016225,2]
[400130112,1767142232275,-1487.84453631,0.00016235,2]
[400130113,1767142232285,-132.04814469,0.00016235,2]
[400130114,1767142232300,-797.31345256,0.00016235,2]
[400130115,1767142232310,-28.28287844,0.00016235,2]
[400130116,1767142232322,-175.2357013,0.00016235,2]
[400130117,1767142232332,-150.0,0.0001628,2]
[400130118,1767142232342,-150.0,0.0001628,2]
[400130119,1767142232351,-150.0,0.0001628,2]
[400130120,1767142232361,-151.0,0.00016297,2]
[400130121,1767142232371,-201.00860598,0.00016299,2]
[400130122,1767142232382,-613.54422931,0.00016299,2]
[400130123,1767142232391,-213.80602727,0.00016299,2]
[400130124,1767142232405,-500.0,0.00016299,2]
[400130125,1767142232416,-500.0,0.00016299,2]
[400130126,1767142232430,-500.0,0.00016299,2]
[400130127,1767142232440,-500.0,0.00016299,2]
[400130128,1767142232449,-500.0,0.00016299,2]
[400130129,1767142232461,-500.0,0.00016299,2]
[400130130,1767142232471,-500.0,0.00016299,2]
[400130131,1767142232481,-500.0,0.00016299,2]
[400130132,1767142232491,-500.0,0.00016299,2]
[400130133,1767142232501,-500.0,0.00016299,2]
[400130134,1767142232511,-473.69749797,0.00016299,2]
[400130135,1767142232520,-164.60535006,0.00016299,2]
[400130136,1767142232530,-500.0,0.00016299,2]
[400130137,1767142232553,-500.0,0.00016299,2]
[400130138,1767142232564,-500.0,0.00016299,2]
[400130139,1767142232574,-500.0,0.00016299,2]
[400130140,1767142232584,-500.0,0.00016299,2]
[400130141,1767142232594,-500.0,0.00016299,2]
[400130142,1767142232604,-500.0,0.00016299,2]
[400130144,1767142232613,-500.0,0.00016299,2]
[400130146,1767142232624,-500.0,0.00016299,2]
[400130148,1767142232634,-500.0,0.00016299,2]
[400130150,1767142232644,-500.0,0.00016299,2]
[400130151,1767142232653,-500.0,0.00016299,2]
[400130152,1767142232663,-500.0,0.00016299,2]
[400130153,1767142232673,-500.0,0.00016299,2]
[400130154,1767142232683,-500.0,0.00016299,2]
[400130155,1767142232693,-500.0,0.00016299,2]
[400130156,1767142232703,-500.0,0.00016299,2]
[400130157,1767142232713,-500.0,0.00016299,2]
[400130158,1767142232723,-500.0,0.00016299,2]
[400130159,1767142232733,-500.0,0.00016299,2]
[400130161,1767142232743,-500.0,0.00016299,2]
[400130163,1767142232753,-500.0,0.00016299,2]
[400130165,1767142232764,-500.0,0.00016299,2]
[400130167,1767142232773,-500.0,0.00016299,2]
[400130169,1767142232783,-500.0,0.00016299,2]
[400130171,1767142232793,-500.0,0.00016299,2]
[400130173,1767142232803,-500.0,0.00016299,2]
[400130175,1767142232812,-500.0,0.00016299,2]
[400130177,1767142232822,-500.0,0.00016299,2]
[400130178,1767142232832,-500.0,0.00016299,2]
[400130179,1767142232841,-500.0,0.00016299,2]
[400130180,1767142232851,-500.0,0.00016299,2]
[400130181,1767142232861,-349.99999999,0.00016299,2]
[400130182,1767142232871,-500.0,0.00016299,2]
[400130183,1767142232881,-500.0,0.00016299,2]
[400130184,1767142232897,-335.78611823,0.00016299,2]
[400130185,1767142233048,-164.21388177,0.00016299,2]
[400130186,1767142233061,-500.0,0.00016299,2]
[400130187,1767142233070,-414.9297516,0.00016299,2]
[400130196,1767142238092,-85.0702484,0.00016299,2]
[400130197,1767142238102,-371.1718174,0.00016299,2]
[400130198,1767142238144,-128.8281826,0.00016299,2]
[400130199,1767142238154,-500.0,0.00016299,2]
[400130200,1767142238168,-244.5618174,0.00016299,2]
[400130201,1767142238251,-255.4381826,0.00016299,2]
[400130202,1767142238261,-662.48,0.00016299,2]
[400130203,1767142238271,-3972.4222104,0.000163,2]
[400130204,1767142238282,-919.38,0.000163,2]
[400130205,1767142238294,-138668.66097988,0.000163,2]
[400130206,1767142238306,-93844.9943089,0.000163,2]
[400130414,1767142240406,-1163.30725525,0.000163,2]
[400130990,1767142246081,-151.0,0.00016245,2]
[400130992,1767142246091,-151.0,0.00016245,2]
[400130994,1767142246100,-4302.95,0.000163,2]
[400130996,1767142246112,-873.398927,0.000163,2]
[400132506,1767142597083,1008.83,0.0003,120]
[400132509,1767142640498,-355.88,0.00013699,2]
[400132510,1767142640523,-212.83960835,0.00013753,2]
[400132519,1767142819881,-419.55688623,0.00013753,2]
[400132520,1767142819906,-224.98848957,0.00013753,2]
[400132521,1767142833986,-38.01151043,0.00013753,2]
[400132524,1767142865695,2285.11873254,0.0003,120]
[400132525,1767142894267,-343.0347923,0.00015592,2]
[400132526,1767142897056,-161.69675482,0.00015592,2]
[400132527,1767142899717,-348.60827636,0.00015592,2]
[400132528,1767142902533,-171.52941078,0.00015592,2]
[400132530,1767142904664,-191.00356636,0.00015592,2]
[400132531,1767142954888,-153.76809205,0.00015514,2]
[400132532,1767142958795,-182.47121194,0.00015514,2]
[400132533,1767142961818,-163.57952881,0.00015514,2]
[400132534,1767143120663,-150.0,0.00015288,2]
[400132535,1767143120690,-119.19244789,0.00015288,2]
[400132538,1767143284923,-214.45265973,0.000145,2]
[400132539,1767143287577,-166.34421319,0.000145,2]
[400132540,1767143289775,-119.20312708,0.000145,2]
[400132541,1767143289805,-271.62793892,0.00015,2]
[400132557,1767143292985,-317.05928227,0.00015,2]
[400132562,1767143296792,-300.0,0.00015,2]
[400132628,1767143329304,-111.31277881,0.00015,2]
[400132629,1767143329326,-30.80755211,0.00015288,2]
[400132630,1767143329348,-119.48302389,0.00015486,2]
[400132644,1767143344266,-235.33872847,0.00015486,2]
[400132645,1767143345958,-358.65641898,0.00015486,2]
[400132671,1767143432144,-526.8195669,0.00015408,2]
[400132672,1767143432200,-226.2767051,0.00015408,2]
[400132673,1767143432216,-73.7232949,0.00015408,2]
[400132674,1767143432259,-204.2767051,0.00015408,2]
[400132675,1767143432269,-786.52182866,0.00015486,2]
[400132676,1767143432279,-8.20146624,0.00015592,2]
[400132679,1767143432318,-115.93573314,0.00015592,2]
[400132680,1767143432328,-227.23742919,0.00015766,2]
[400132681,1767143432338,-934.013,0.00015866,2]
[400132682,1767143432348,-156.763,0.00015866,2]
[400132683,1767143432359,-406.9244,0.00015874,2]
[400132684,1767143432369,-3240.0,0.00015888,2]
[400132685,1767143432380,-195.0,0.0001595,2]
[400132687,1767143432390,-155.79503444,0.00016016,2]
[400132689,1767143432400,-150.0,0.00016016,2]
[400132691,1767143432410,-150.0,0.00016016,2]
[400132693,1767143432420,-150.0,0.00016016,2]
[400132695,1767143432430,-200.0,0.00016016,2]
[400132697,1767143432440,-150.0,0.00016071,2]
[400132699,1767143432449,-150.0,0.00016071,2]
[400132701,1767143432459,-151.0,0.00016083,2]
[400132703,1767143432468,-151.0,0.00016083,2]
[400132705,1767143432478,-3918.00221098,0.0001609,2]
[400132707,1767143432490,-567.91238902,0.0001609,2]
[400132709,1767143432500,-166.62355946,0.0001609,2]
[400132712,1767143432512,-355.28484054,0.0001609,2]
[400132714,1767143432521,-951.35312979,0.000161,2]
[400132716,1767143432531,-1069.49202967,0.000161,2]
[400132719,1767143432542,-269.568053,0.000161,2]
[400132722,1767143432552,-178.07875729,0.000161,2]
[400132725,1767143432561,-252.35318971,0.000161,2]
[400132727,1767143432573,-106.30322927,0.000161,2]
[400132729,1767143432582,-168.90461355,0.00016126,2]
[400132732,1767143432591,-150.0,0.00016126,2]
[400132734,1767143432601,-317.97791297,0.0001618,2]
[400132736,1767143432611,-500.0,0.0001618,2]
[400132738,1767143432626,-463.3101686,0.0001618,2]
[400132740,1767143432638,-36.6898314,0.0001618,2]
[400132743,1767143432648,-500.0,0.0001618,2]
[400132745,1767143432657,-500.0,0.0001618,2]
[400132747,1767143432667,-398.4131225,0.0001618,2]
[400132749,1767143432680,-101.5868775,0.0001618,2]
[400132751,1767143432690,-500.0,0.0001618,2]
[400132753,1767143432699,-151.0,0.0001618,2]
[400132755,1767143432709,-500.0,0.0001618,2]
[400132758,1767143432720,-151.0,0.0001618,2]
[400132760,1767143432730,-595.94481083,0.0001618,2]
[400132762,1767143432741,-151.0,0.0001618,2]
[400132764,1767143432752,-107.80173223,0.0001618,2]
[400132766,1767143432764,-43.19826777,0.0001618,2]
[400132768,1767143432774,-151.0,0.0001618,2]
[400132770,1767143432783,-151.0,0.0001618,2]
[400132772,1767143432793,-500.0,0.0001618,2]
[400132773,1767143432803,-151.0,0.0001618,2]
[400132774,1767143432813,-500.0,0.0001618,2]
[400132775,1767143432823,-151.0,0.0001618,2]
[400132776,1767143432833,-500.0,0.0001618,2]
[400132778,1767143432843,-151.0,0.0001618,2]
[400132779,1767143432853,-500.0,0.0001618,2]
[400132780,1767143432863,-151.0,0.0001618,2]
[400132781,1767143432872,-500.0,0.0001618,2]
[400132782,1767143432882,-151.0,0.0001618,2]
[400132783,1767143432892,-500.0,0.0001618,2]
[400132784,1767143432902,-500.0,0.0001618,2]
[400132785,1767143432913,-151.0,0.0001618,2]
[400132786,1767143432923,-500.0,0.0001618,2]
[400132787,1767143432933,-151.0,0.0001618,2]
[400132788,1767143432943,-500.0,0.0001618,2]
[400132789,1767143432953,-151.0,0.0001618,2]
[400132790,1767143432963,-500.0,0.0001618,2]
[400132791,1767143432973,-151.0,0.0001618,2]
[400132792,1767143432987,-312.62449881,0.0001618,2]
[400132793,1767143432998,-151.0,0.0001618,2]
[400132794,1767143433008,-151.0,0.0001618,2]
[400132795,1767143433018,-151.0,0.0001618,2]
[400132796,1767143433028,-151.0,0.0001618,2]
[400132797,1767143433038,-151.0,0.0001618,2]
[400132798,1767143433048,-151.0,0.0001618,2]
[400132799,1767143433058,-151.0,0.0001618,2]
[400132800,1767143433069,-151.0,0.0001618,2]
[400132801,1767143433079,-151.0,0.0001618,2]
[400132802,1767143433090,-151.0,0.0001618,2]
[400132803,1767143433100,-151.0,0.0001618,2]
[400132804,1767143433109,-151.0,0.0001618,2]
[400132805,1767143433119,-429.48096052,0.00016189,2]
[400132806,1767143433130,-500.0,0.00016189,2]
[400132807,1767143433140,-500.0,0.00016189,2]
[400132808,1767143433150,-500.0,0.00016189,2]
[400132809,1767143433161,-500.0,0.00016189,2]
[400132810,1767143433171,-500.0,0.00016189,2]
[400132811,1767143433181,-432.3697498,0.00016189,2]
[400132812,1767143433191,-3173.0,0.0001619,2]
[400132813,1767143433201,-32126.94720432,0.0001619,2]
[400132814,1767143433215,-1104.82449094,0.0001619,2]
[400132815,1767143433227,-748.69638418,0.0001619,2]
[400132819,1767143438268,-5009.47133818,0.0001619,2]
[400132820,1767143438280,-822.627884,0.0001619,2]
[400132821,1767143438325,-8636.2463864,0.0001619,2]
[400132822,1767143438384,-3729.44527212,0.0001619,2]
[400132823,1767143438396,-29987.88266827,0.0001619,2]
[400132824,1767143438442,-97131.47482045,0.0001619,2]
[400132825,1767143438454,-540.01220046,0.0001619,2]
[400133028,1767143440513,-552.1046876,0.0001619,2]
[400133059,1767143440787,-3561.99998,0.0001619,2]
[400133061,1767143440800,-978.43928293,0.0001619,2]
[400133088,1767143441037,-1.7e-07,0.0001619,2]
[400133212,1767143443952,-353.567998,0.0001619,2]
[400133219,1767143446279,-500.0,0.00016189,2]
[400133220,1767143446290,-1329.34553817,0.0001619,2]
[400133221,1767143446446,-1580.94238706,0.0001619,2]
[400133222,1767143446458,-1065.32192759,0.0001619,2]
[400133223,1767143446469,-817.05,0.0001619,2]
[400133224,1767143446506,-2726.21303154,0.0001619,2]
[400133289,1767144109725,-591.29135752,0.00015768,2]
[400133290,1767144111313,-246.82755494,0.00015768,2]
[400133294,1767144199285,-166.66,0.00014641,2]
[400133295,1767144199309,-166.66,0.00014949,2]
[400133296,1767144199331,-166.66,0.00015257,2]
[400133297,1767144199353,-22.14432188,0.00015289,2]
[400133299,1767144259254,-200.0,0.00015242,2]
[400133300,1767144259277,-383.83240679,0.00015265,2]
[400133301,1767144262984,-198.6103345,0.00015265,2]
[400133371,1767144559323,-187.80115239,0.00015173,3]
[400133372,1767144564319,-302.0,0.00015173,3]
[400133373,1767144574369,-272.93522269,0.00015173,3]
[400133386,1767144631410,-236.26362492,0.00015173,3]
[400133387,1767144631420,-250.60740508,0.00015265,2]
[400133388,1767144631433,-166.94985363,0.00015265,2]
[400133389,1767144631443,-150.0,0.00015288,2]
[400133390,1767144631453,-150.0,0.00015288,2]
[400133391,1767144631463,-150.0,0.00015288,2]
[400133392,1767144631473,-150.0,0.00015288,2]
[400133393,1767144631483,-150.0,0.00015288,2]
[400133394,1767144631493,-150.0,0.00015288,2]
[400133395,1767144631503,-482.140801,0.00015289,2]
[400133396,1767144631516,-50.36487712,0.00015289,2]
[400133397,1767144631527,-166.66,0.00015566,2]
[400133398,1767144631537,-195.83508754,0.00015768,2]
[400133399,1767144631547,-161.554,0.00015768,2]
[400133400,1767144631558,-1200.0,0.00015836,2]
[400133401,1767144631568,-167.7457105,0.00015837,2]
[400133402,1767144631581,-1362.1942895,0.00015837,2]
[400133403,1767144631592,-166.66,0.00015874,2]
[400133404,1767144631602,-166.66,0.00015964,2]
[400133405,1767144631612,-151.24,0.00015987,2]
[400133406,1767144631623,-214.0,0.00015989,2]
[400133407,1767144631632,-1205.15407443,0.0001599,2]
[400133408,1767144631642,-279.37175872,0.0001599,2]
[400133409,1767144631652,-151.0,0.00015997,2]
[400133410,1767144631662,-151.0,0.00015997,2]
[400133411,1767144631672,-227.593215,0.00015997,2]
[400133412,1767144631681,-151.0,0.00015997,2]
[400133413,1767144631691,-154.12766097,0.00015997,2]
[400133414,1767144631700,-92.71811635,0.00016,2]
[400133416,1767144631713,-111.65627003,0.00016,2]
[400133417,1767144631723,-1985.34372997,0.00016,2]
[400133418,1767144631735,-446.88,0.00016,2]
[400133420,1767144631747,-612.07,0.00016,2]
[400133421,1767144631759,-45849.64287886,0.00016,2]
[400133422,1767144631768,-29982.36744377,0.00016,4]
[400133423,1767144631780,-62481.69349537,0.00016,4]
[400133424,1767144631791,-4422.82268628,0.00016,4]
[400133425,1767144631800,-150.0,0.00016006,2]
[400133426,1767144631810,-150.0,0.00016006,2]
[400133427,1767144631820,-279.3717587,0.0001604,2]
[400133428,1767144631829,-150.0,0.00016061,2]
[400133429,1767144631839,-151.0,0.0001608,2]
[400133430,1767144631848,-151.0,0.0001608,2]
[400133433,1767144631858,-151.0,0.0001608,2]
[400133435,1767144631867,-151.0,0.0001608,2]
[400133436,1767144631877,-158.86938583,0.0001608,2]
[400133437,1767144631887,-500.0,0.00016082,2]
[400133438,1767144631897,-500.0,0.00016089,2]
[400133439,1767144631907,-500.0,0.00016089,2]
[400133440,1767144631917,-500.0,0.00016089,2]
[400133441,1767144631927,-500.0,0.00016089,2]
[400133442,1767144631937,-626.87269415,0.00016089,2]
[400133443,1767144631947,-500.0,0.00016089,2]
[400133444,1767144631957,-500.0,0.00016089,2]
[400133445,1767144631966,-500.0,0.00016089,2]
[400133446,1767144631977,-300.63667236,0.00016089,2]
[400133447,1767144631986,-325.81886109,0.00016089,2]
[400133448,1767144631996,-505.01898847,0.00016089,2]
[400133449,1767144632008,-279.3717587,0.0001609,2]
[400133450,1767144632017,-77166.21577177,0.0001609,2]
[400133451,1767144632029,-1579.47530323,0.0001609,2]
[400133453,1767144637446,-3241.15112237,0.0001609,2]
[400133454,1767144637580,-585.61029386,0.0001609,2]
[400133455,1767144637593,-1266.01117204,0.0001609,2]
[400133456,1767144637606,-37746.01196906,0.0001609,2]
[400133457,1767144637622,-289080.59120963,0.0001609,2]
[400133614,1767144639512,-925.42098678,0.0001609,2]
[400133635,1767144639725,-15941.23605073,0.0001609,2]
[400133637,1767144639739,-972.34014521,0.0001609,2]
[400133639,1767144639751,-442.484442,0.0001609,2]
[400133641,1767144639767,-280.76463095,0.0001609,2]
[400133643,1767144639779,-1911.76033256,0.0001609,2]
[400133658,1767144639932,-961.01300326,0.0001609,2]
[400133987,1767144643330,-43583.64488765,0.0001609,2]
[400133990,1767144643355,-223.26312458,0.0001609,2]
[400134000,1767144643442,-881.0,0.0001609,2]
[400134066,1767144644208,-6587.776033,0.0001609,2]
[400134068,1767144644220,-30358.26955966,0.0001609,2]
[400134217,1767144645664,-444.81816065,0.0001609,2]
[400134219,1767144645677,-5103.0,0.0001609,2]
[400134225,1767144645727,-48626.4191349,0.0001609,2]
[400134228,1767144645738,-500.0,0.0001609,2]
[400134909,1767144702735,2002.08153763,0.00030136,120]
[400134923,1767144829388,-254.56718683,0.00015445,2]
[400134959,1767144914417,-454.03281317,0.00015445,2]
[400134960,1767144914450,-250.0,0.00015672,2]
[400134961,1767144914480,-300.0,0.00015672,2]
[400134962,1767144914510,-260.90172617,0.00015845,2]
[400134963,1767144914545,-300.0,0.00015845,2]
[400134964,1767144914576,-304.90495822,0.00015845,2]
[400134965,1767144914607,-1200.0,0.00015899,2]
[400134966,1767144914638,-22.93230488,0.000159,2]
[400134967,1767144917502,-3814.46639512,0.000159,2]
[400134968,1767144917534,-531.4369,0.000159,2]
[400134969,1767144926481,-8635.92615379,0.000159,2]
[400134985,1767145114963,-189.02492322,0.000158,2]
[400134987,1767145174371,-409.27221442,0.00015127,2]
[400134988,1767145177092,-196.31686895,0.00015127,2]
[400134989,1767145179858,-204.9213598,0.00015127,2]
[400134990,1767145181623,-160.86771414,0.00015127,2]
[400134991,1767145183893,-315.51067724,0.00015127,2]
[400134992,1767145185492,-301.7253317,0.00015127,2]
[400134993,1767145189363,-221.90119514,0.00015127,2]
[400134994,1767145191414,-369.77900279,0.00015127,2]
[400134995,1767145193611,-173.62906968,0.00015127,2]
[400134996,1767145196729,-350.3364563,0.00015127,2]
[400134997,1767145198259,-175.92842549,0.00015127,2]
[400134998,1767145200903,-305.4077139,0.00015127,2]
[400135001,1767145206140,-300.0,0.00015126,2]
[400135002,1767145206163,-72.55252915,0.00015126,2]
[400135008,1767145212922,-379.43,0.00013699,2]
[400135009,1767145212945,-217.39124651,0.0001505,2]
[400135010,1767145214594,-153.72,0.0001505,2]
[400135011,1767145216809,-167.02443224,0.0001505,2]
[400135013,1767145221885,-223.7392808,0.0001505,2]
[400135015,1767145224598,-197.84231559,0.0001505,2]
[400135016,1767145226750,-324.5128275,0.0001505,2]
[400135036,1767145229051,-446.74997068,0.0001505,2]
[400135037,1767145232823,-197.4140413,0.0001505,2]
[400135040,1767145238417,-225.32135981,0.0001505,2]
[400135041,1767145240555,-207.4122511,0.0001505,2]
[400135044,1767145243907,-410.58755797,0.0001505,2]
[400135045,1767145245714,-178.24211257,0.0001505,2]
[400135046,1767145248380,-240.27207393,0.0001505,2]
[400135047,1767145248404,-190.56891613,0.00015126,2]
[400135064,1767145250504,-12.87855472,0.00015126,2]
[400135066,1767145250527,-150.15037905,0.00015127,2]
[400135067,1767145252650,-187.76251217,0.00015127,2]
[400135069,1767145254788,-166.33236124,0.00015127,2]
[400135070,1767145256611,-229.22521654,0.00015127,2]
[400135076,1767145257953,-201.371709,0.00015127,2]
[400135079,1767145260654,-671.52377087,0.00015127,2]
[400135081,1767145263951,-182.34796988,0.00015126,2]
[400135084,1767145265553,-117.65203012,0.00015126,2]